[Event "Late-Titled-Tuesday-Blitz-February-13-2024"]
[Site "Chess.com"]
[Date "2024.02.13"]
[Round "2"]
[White "dropstoneDP"]
[Black "Rashad_Zeynalli"]
[Result "1-0"]
[WhiteElo "3048"]
[BlackElo "2660"]
[TimeControl "180+1"]
[EndTime "14:15:10 PST"]
[Termination "dropstoneDP won by resignation"]

1. e4 {[%clk 0:02:16.1]} 1... e5 {[%clk 0:02:58.1]} 2. Nf3 {[%clk 0:02:14.5]}
2... Nc6 {[%clk 0:02:58.4]} 3. Bb5 {[%clk 0:02:14]} 3... f5 {[%clk 0:02:56.9]}
4. d3 {[%clk 0:02:09]} 4... fxe4 {[%clk 0:02:56.8]} 5. dxe4 {[%clk 0:02:09.9]}
5... Nf6 {[%clk 0:02:57]} 6. O-O {[%clk 0:02:09.7]} 6... Bc5 {[%clk 0:02:57.5]}
7. Bxc6 {[%clk 0:02:09.6]} 7... bxc6 {[%clk 0:02:57.2]} 8. Nxe5 {[%clk
0:02:10.1]} 8... O-O {[%clk 0:02:57.3]} 9. Nc3 {[%clk 0:02:10.6]} 9... Ba6
{[%clk 0:02:55.9]} 10. Nd3 {[%clk 0:02:08.5]} 10... Bb6 {[%clk 0:02:56.4]} 11.
Bg5 {[%clk 0:02:07.7]} 11... Qe8 {[%clk 0:02:48.7]} 12. Bxf6 {[%clk 0:02:03.1]}
12... Rxf6 {[%clk 0:02:47.6]} 13. Kh1 {[%clk 0:02:01.4]} 13... Bxd3 {[%clk
0:02:25.4]} 14. Qxd3 {[%clk 0:01:58.7]} 14... Bxf2 {[%clk 0:02:24.8]} 15. e5
{[%clk 0:01:43.1]} 15... Qxe5 {[%clk 0:02:15.8]} 16. Ne4 {[%clk 0:01:43.2]}
16... Rh6 {[%clk 0:02:04.3]} 17. h3 {[%clk 0:01:40.5]} 17... Bd4 {[%clk
0:01:34.3]} 18. c3 {[%clk 0:01:40.1]} 18... Bb6 {[%clk 0:01:25.4]} 19. Qxd7
{[%clk 0:01:36.8]} 19... Bc5 {[%clk 0:00:42]} 20. Qf7+ {[%clk 0:01:30.6]} 20...
Kh8 {[%clk 0:00:41.7]} 21. Rae1 {[%clk 0:01:31]} 21... Re8 {[%clk 0:00:36.4]}
22. Nxc5 {[%clk 0:01:21.2]} 1-0

[Event "Late-Titled-Tuesday-Blitz-February-13-2024"]
[Site "Chess.com"]
[Date "2024.02.13"]
[Round "2"]
[White "Attacker_2006"]
[Black "MajorCoast"]
[Result "1-0"]
[WhiteElo "2483"]
[BlackElo "2199"]
[TimeControl "180+1"]
[EndTime "14:15:16 PST"]
[Termination "Attacker_2006 won by resignation"]

1. e4 {[%clk 0:02:48.1]} 1... e6 {[%clk 0:03:00.9]} 2. Nf3 {[%clk 0:02:47.3]}
2... d5 {[%clk 0:03:01.8]} 3. exd5 {[%clk 0:02:47.5]} 3... exd5 {[%clk
0:02:58.9]} 4. d4 {[%clk 0:02:31.3]} 4... Bd6 {[%clk 0:02:57.8]} 5. h3 {[%clk
0:02:30.8]} 5... Ne7 {[%clk 0:02:57.9]} 6. Bd3 {[%clk 0:02:30.2]} 6... Bf5
{[%clk 0:02:50.6]} 7. O-O {[%clk 0:02:29.5]} 7... Bxd3 {[%clk 0:02:49.9]} 8.
Qxd3 {[%clk 0:02:27.9]} 8... O-O {[%clk 0:02:50.8]} 9. c3 {[%clk 0:02:27.8]}
9... c6 {[%clk 0:02:49.4]} 10. Re1 {[%clk 0:02:28.3]} 10... Ng6 {[%clk
0:02:46.7]} 11. Be3 {[%clk 0:02:26.2]} 11... Nd7 {[%clk 0:02:45.7]} 12. Nbd2
{[%clk 0:02:26]} 12... Re8 {[%clk 0:02:45.3]} 13. Rad1 {[%clk 0:02:24.4]} 13...
Nf6 {[%clk 0:02:45.3]} 14. Bg5 {[%clk 0:02:17.4]} 14... h6 {[%clk 0:02:41]} 15.
Be3 {[%clk 0:02:14.1]} 15... Qc7 {[%clk 0:02:37]} 16. a4 {[%clk 0:02:04.4]}
16... a5 {[%clk 0:02:36.2]} 17. c4 {[%clk 0:01:57]} 17... Nf4 {[%clk 0:02:34.1]}
18. Qf5 {[%clk 0:01:44.6]} 18... Ne4 {[%clk 0:02:16.4]} 19. c5 {[%clk
0:01:33.4]} 19... Nxf2 {[%clk 0:01:07.6]} 20. cxd6 {[%clk 0:01:20.6]} 20... Qxd6
{[%clk 0:01:00.4]} 21. Bxf4 {[%clk 0:01:14.8]} 21... Qb4 {[%clk 0:00:53.8]} 22.
Kxf2 {[%clk 0:01:06.2]} 22... Qxd4+ {[%clk 0:00:51]} 23. Nxd4 {[%clk 0:01:05.7]}
1-0

[Event "Late-Titled-Tuesday-Blitz-February-13-2024"]
[Site "Chess.com"]
[Date "2024.02.13"]
[Round "2"]
[White "brother-bear"]
[Black "elchacal664"]
[Result "0-1"]
[WhiteElo "2006"]
[BlackElo "2414"]
[TimeControl "180+1"]
[EndTime "14:15:16 PST"]
[Termination "elchacal664 won by resignation"]

1. e4 {[%clk 0:03:00.9]} 1... d5 {[%clk 0:02:58.7]} 2. exd5 {[%clk 0:03:00.1]}
2... Qxd5 {[%clk 0:02:59.6]} 3. Nc3 {[%clk 0:02:57.6]} 3... Qd6 {[%clk
0:02:59.3]} 4. d4 {[%clk 0:02:54.9]} 4... a6 {[%clk 0:02:59.3]} 5. Nf3 {[%clk
0:02:54.2]} 5... Nf6 {[%clk 0:02:59.2]} 6. g3 {[%clk 0:02:42.7]} 6... b5 {[%clk
0:02:58.8]} 7. Bg2 {[%clk 0:02:40.9]} 7... Bb7 {[%clk 0:02:59]} 8. O-O {[%clk
0:02:37.2]} 8... e6 {[%clk 0:02:58.9]} 9. Bf4 {[%clk 0:02:36.2]} 9... Qb6 {[%clk
0:02:58.9]} 10. Re1 {[%clk 0:02:31]} 10... Bd6 {[%clk 0:02:56]} 11. Qd2 {[%clk
0:02:12.2]} 11... O-O {[%clk 0:02:48.5]} 12. Rad1 {[%clk 0:02:09.3]} 12... Rd8
{[%clk 0:02:37.8]} 13. a3 {[%clk 0:02:01.7]} 13... Nbd7 {[%clk 0:02:34.9]} 14.
Bxd6 {[%clk 0:01:57]} 14... cxd6 {[%clk 0:02:33.9]} 15. Qf4 {[%clk 0:01:44.7]}
15... Rac8 {[%clk 0:02:32.3]} 16. Rd2 {[%clk 0:01:40.9]} 16... h6 {[%clk
0:02:31.6]} 17. h4 {[%clk 0:01:27.1]} 17... Rc4 {[%clk 0:02:31]} 18. Qe3 {[%clk
0:01:25.4]} 18... Ng4 {[%clk 0:02:24.3]} 19. Qe2 {[%clk 0:01:23.2]} 19... Ngf6
{[%clk 0:02:22]} 20. Red1 {[%clk 0:01:03.4]} 20... Rdc8 {[%clk 0:02:21.4]} 21.
Ne1 {[%clk 0:00:52.1]} 21... Bxg2 {[%clk 0:02:20.1]} 22. Nxg2 {[%clk 0:00:52.2]}
22... Rxc3 {[%clk 0:02:06.2]} 23. bxc3 {[%clk 0:00:51.7]} 23... Nd5 {[%clk
0:02:07.1]} 24. Qg4 {[%clk 0:00:33.2]} 24... N7f6 {[%clk 0:02:05.4]} 25. Qf3
{[%clk 0:00:31.2]} 25... Nxc3 {[%clk 0:02:03.2]} 26. Re1 {[%clk 0:00:28.5]}
26... Ncd5 {[%clk 0:02:02.7]} 27. Ne3 {[%clk 0:00:20.3]} 27... Qa5 {[%clk
0:01:56]} 28. Red1 {[%clk 0:00:15.6]} 28... Qxa3 {[%clk 0:01:54.9]} 29. Nxd5
{[%clk 0:00:14]} 29... Qxf3 {[%clk 0:01:53.1]} 0-1

[Event "Late-Titled-Tuesday-Blitz-February-13-2024"]
[Site "Chess.com"]
[Date "2024.02.13"]
[Round "2"]
[White "maicolbenavides"]
[Black "giovannibrandao7"]
[Result "1-0"]
[WhiteElo "2509"]
[BlackElo "2257"]
[TimeControl "180+1"]
[EndTime "14:15:22 PST"]
[Termination "maicolbenavides won by resignation"]

1. e4 {[%clk 0:03:00.9]} 1... c5 {[%clk 0:02:57.6]} 2. Nf3 {[%clk 0:03:00.4]}
2... d6 {[%clk 0:02:56]} 3. d4 {[%clk 0:02:57.8]} 3... cxd4 {[%clk 0:02:39.9]}
4. Nxd4 {[%clk 0:02:58.7]} 4... Nf6 {[%clk 0:02:40]} 5. Nc3 {[%clk 0:02:58]}
5... a6 {[%clk 0:02:40.5]} 6. h3 {[%clk 0:02:56.9]} 6... e5 {[%clk 0:02:33]} 7.
Nde2 {[%clk 0:02:53.2]} 7... b5 {[%clk 0:02:30.3]} 8. g4 {[%clk 0:02:47.6]} 8...
Bb7 {[%clk 0:02:23.9]} 9. Bg2 {[%clk 0:02:41.4]} 9... b4 {[%clk 0:02:19.8]} 10.
Nd5 {[%clk 0:02:40.2]} 10... Nxd5 {[%clk 0:02:19.3]} 11. exd5 {[%clk 0:02:41.1]}
11... Be7 {[%clk 0:02:12.9]} 12. a3 {[%clk 0:02:39.1]} 12... bxa3 {[%clk
0:02:03.5]} 13. Rxa3 {[%clk 0:02:40]} 13... Nd7 {[%clk 0:01:59.1]} 14. O-O
{[%clk 0:02:34.5]} 14... O-O {[%clk 0:01:55.7]} 15. f4 {[%clk 0:02:31.2]} 15...
exf4 {[%clk 0:01:39.7]} 16. Bxf4 {[%clk 0:02:30.2]} 16... Nc5 {[%clk 0:01:25]}
17. Kh1 {[%clk 0:02:20.9]} 17... Rc8 {[%clk 0:01:06.3]} 18. Nd4 {[%clk
0:02:15.8]} 18... Re8 {[%clk 0:00:35.2]} 19. b4 {[%clk 0:01:54.9]} 19... Nd7
{[%clk 0:00:33]} 20. Nc6 {[%clk 0:01:53.5]} 20... Bxc6 {[%clk 0:00:17.6]} 21.
dxc6 {[%clk 0:01:54.4]} 21... Ne5 {[%clk 0:00:13]} 22. Rxa6 {[%clk 0:01:49.2]}
22... Bf6 {[%clk 0:00:03.9]} 23. b5 {[%clk 0:01:48.7]} 23... Qc7 {[%clk
0:00:02.4]} 24. Bxe5 {[%clk 0:01:46.6]} 1-0

[Event "Late-Titled-Tuesday-Blitz-February-13-2024"]
[Site "Chess.com"]
[Date "2024.02.13"]
[Round "2"]
[White "Conejoviejo67"]
[Black "JiiHart"]
[Result "0-1"]
[WhiteElo "2432"]
[BlackElo "2157"]
[TimeControl "180+1"]
[EndTime "14:15:22 PST"]
[Termination "JiiHart won by resignation"]

1. e4 {[%clk 0:03:00.9]} 1... c5 {[%clk 0:02:59.5]} 2. Nc3 {[%clk 0:03:00.9]}
2... e6 {[%clk 0:02:59.2]} 3. g3 {[%clk 0:03:01.4]} 3... d5 {[%clk 0:02:59.5]}
4. Bg2 {[%clk 0:03:01.6]} 4... Nf6 {[%clk 0:02:54.7]} 5. d3 {[%clk 0:03:00.3]}
5... dxe4 {[%clk 0:02:49.4]} 6. Nxe4 {[%clk 0:03:01.2]} 6... Nxe4 {[%clk
0:02:48.9]} 7. Bxe4 {[%clk 0:03:02.1]} 7... Nd7 {[%clk 0:02:48]} 8. f4 {[%clk
0:03:00.5]} 8... Nf6 {[%clk 0:02:47.6]} 9. Bg2 {[%clk 0:02:57.1]} 9... Qc7
{[%clk 0:02:46.2]} 10. Nf3 {[%clk 0:02:55.8]} 10... Bd6 {[%clk 0:02:41.6]} 11.
O-O {[%clk 0:02:55.6]} 11... Bd7 {[%clk 0:02:41]} 12. b3 {[%clk 0:02:55]} 12...
Bc6 {[%clk 0:02:40.4]} 13. Bb2 {[%clk 0:02:55]} 13... O-O {[%clk 0:02:23.9]} 14.
Qe2 {[%clk 0:02:54.2]} 14... Bxf3 {[%clk 0:01:57.5]} 15. Qxf3 {[%clk 0:02:51.2]}
15... Rab8 {[%clk 0:01:54.3]} 16. Bxf6 {[%clk 0:02:28.7]} 16... gxf6 {[%clk
0:01:52.7]} 17. f5 {[%clk 0:02:29.2]} 17... Be5 {[%clk 0:01:26.8]} 18. Rae1
{[%clk 0:02:23.7]} 18... Kh8 {[%clk 0:01:23.8]} 19. Re4 {[%clk 0:02:21.7]} 19...
Rg8 {[%clk 0:01:14.8]} 20. Rh4 {[%clk 0:02:19.1]} 20... Rg7 {[%clk 0:01:13]} 21.
Qh5 {[%clk 0:02:13.8]} 21... Bxg3 {[%clk 0:01:02.8]} 22. hxg3 {[%clk 0:02:12.6]}
22... Qxg3 {[%clk 0:01:02.9]} 23. Rf2 {[%clk 0:02:10.4]} 23... Rbg8 {[%clk
0:00:57.4]} 24. Rh3 {[%clk 0:01:56.4]} 24... Qe5 {[%clk 0:00:41.7]} 25. Qe2
{[%clk 0:01:47.8]} 25... Rxg2+ {[%clk 0:00:40.9]} 26. Rxg2 {[%clk 0:01:44.8]}
26... Qxe2 {[%clk 0:00:40.9]} 27. Rxg8+ {[%clk 0:01:36.9]} 27... Kxg8 {[%clk
0:00:40.6]} 28. fxe6 {[%clk 0:01:34.8]} 28... fxe6 {[%clk 0:00:40.2]} 29. Rh2
{[%clk 0:01:34.7]} 29... Qd1+ {[%clk 0:00:37.4]} 30. Kg2 {[%clk 0:01:34.6]}
30... Qxc2+ {[%clk 0:00:37.5]} 0-1

[Event "Late-Titled-Tuesday-Blitz-February-13-2024"]
[Site "Chess.com"]
[Date "2024.02.13"]
[Round "2"]
[White "MessiKingdom"]
[Black "KuzubovYuriy"]
[Result "0-1"]
[WhiteElo "2630"]
[BlackElo "2978"]
[TimeControl "180+1"]
[EndTime "14:15:25 PST"]
[Termination "KuzubovYuriy won by resignation"]

1. d4 {[%clk 0:02:57.2]} 1... g6 {[%clk 0:03:00.3]} 2. Nc3 {[%clk 0:02:55.2]}
2... Bg7 {[%clk 0:03:00.8]} 3. Bf4 {[%clk 0:02:55.6]} 3... d6 {[%clk 0:03:00.2]}
4. e4 {[%clk 0:02:55.8]} 4... Nc6 {[%clk 0:03:00.4]} 5. Nf3 {[%clk 0:02:55.6]}
5... Bg4 {[%clk 0:02:56.7]} 6. Bb5 {[%clk 0:02:56]} 6... Bxf3 {[%clk 0:02:51.2]}
7. Qxf3 {[%clk 0:02:55.9]} 7... Bxd4 {[%clk 0:02:41.6]} 8. O-O-O {[%clk
0:02:55.9]} 8... e5 {[%clk 0:02:31.6]} 9. Ne2 {[%clk 0:02:53.4]} 9... Bxb2+
{[%clk 0:02:23.2]} 10. Kxb2 {[%clk 0:02:54.3]} 10... exf4 {[%clk 0:02:21.5]} 11.
e5 {[%clk 0:02:55]} 11... Ne7 {[%clk 0:02:20.6]} 12. h4 {[%clk 0:02:40.3]} 12...
O-O {[%clk 0:02:19.3]} 13. h5 {[%clk 0:02:34.7]} 13... Nxe5 {[%clk 0:02:18.8]}
14. Qxf4 {[%clk 0:02:35.3]} 14... c6 {[%clk 0:02:13.1]} 15. Bd3 {[%clk
0:02:05.2]} 15... Nd5 {[%clk 0:02:10]} 16. Qh6 {[%clk 0:01:56.1]} 16... Qf6
{[%clk 0:02:10.1]} 17. Kb1 {[%clk 0:01:48.2]} 17... Ng4 {[%clk 0:02:01.2]} 18.
Qc1 {[%clk 0:01:32.4]} 18... Rae8 {[%clk 0:01:58.7]} 19. hxg6 {[%clk 0:01:08.6]}
19... fxg6 {[%clk 0:01:56.7]} 20. Bc4 {[%clk 0:00:48.7]} 20... Rxe2 {[%clk
0:01:56.2]} 21. Rxd5 {[%clk 0:00:49.2]} 21... cxd5 {[%clk 0:01:56.3]} 22. Bxe2
{[%clk 0:00:49.9]} 22... Nxf2 {[%clk 0:01:44.9]} 23. Rf1 {[%clk 0:00:49.7]}
23... Qd4 {[%clk 0:01:34.2]} 24. Qg5 {[%clk 0:00:28.2]} 24... Qe5 {[%clk
0:01:24.4]} 25. Qh6 {[%clk 0:00:25.4]} 0-1

[Event "Late-Titled-Tuesday-Blitz-February-13-2024"]
[Site "Chess.com"]
[Date "2024.02.13"]
[Round "2"]
[White "cukricek"]
[Black "martinmena"]
[Result "1-0"]
[WhiteElo "2453"]
[BlackElo "2138"]
[TimeControl "180+1"]
[EndTime "14:15:28 PST"]
[Termination "cukricek won on time"]

1. g3 {[%clk 0:03:00.9]} 1... d5 {[%clk 0:02:51.7]} 2. Nf3 {[%clk 0:02:59.7]}
2... Nf6 {[%clk 0:02:52.3]} 3. Bg2 {[%clk 0:02:59.9]} 3... Bg4 {[%clk
0:02:49.4]} 4. Ne5 {[%clk 0:02:58.1]} 4... Bf5 {[%clk 0:02:47.1]} 5. O-O {[%clk
0:02:58]} 5... Nbd7 {[%clk 0:02:46]} 6. d4 {[%clk 0:02:58.3]} 6... e6 {[%clk
0:02:44.8]} 7. b3 {[%clk 0:02:58.2]} 7... c5 {[%clk 0:02:44.7]} 8. e3 {[%clk
0:02:54.2]} 8... Bd6 {[%clk 0:02:44.2]} 9. Bb2 {[%clk 0:02:54.5]} 9... Bxe5
{[%clk 0:02:41.7]} 10. dxe5 {[%clk 0:02:55.4]} 10... Ng4 {[%clk 0:02:41.5]} 11.
c4 {[%clk 0:02:49.8]} 11... dxc4 {[%clk 0:02:38.3]} 12. bxc4 {[%clk 0:02:31.4]}
12... Qc7 {[%clk 0:02:38.3]} 13. e4 {[%clk 0:02:16]} 13... O-O-O {[%clk
0:02:17.1]} 14. exf5 {[%clk 0:02:13.6]} 14... Ndxe5 {[%clk 0:02:16.6]} 15. Qa4
{[%clk 0:02:10.5]} 15... Qb6 {[%clk 0:02:10.1]} 16. Bxe5 {[%clk 0:02:05.5]}
16... Nxe5 {[%clk 0:02:07.8]} 17. fxe6 {[%clk 0:02:02.9]} 17... Qb2 {[%clk
0:02:02.5]} 18. Qxa7 {[%clk 0:01:55.1]} 18... Nc6 {[%clk 0:01:13.1]} 19. Bxc6
{[%clk 0:01:50.9]} 19... bxc6 {[%clk 0:01:13.6]} 20. Na3 {[%clk 0:01:48]} 20...
Qb7 {[%clk 0:00:04]} 21. Qa5 {[%clk 0:01:43.7]} 21... fxe6 {[%clk 0:00:02.7]}
22. Rab1 {[%clk 0:01:41.6]} 22... Qc7 {[%clk 0:00:03.1]} 23. Qxc5 {[%clk
0:01:41.7]} 23... Rd3 {[%clk 0:00:01.4]} 24. Rb6 {[%clk 0:01:39.5]} 1-0

[Event "Late-Titled-Tuesday-Blitz-February-13-2024"]
[Site "Chess.com"]
[Date "2024.02.13"]
[Round "2"]
[White "Cristi_Coca"]
[Black "DeGrootteZ"]
[Result "0-1"]
[WhiteElo "2389"]
[BlackElo "2822"]
[TimeControl "180+1"]
[EndTime "14:15:31 PST"]
[Termination "DeGrootteZ won by resignation"]

1. e4 {[%clk 0:03:00.9]} 1... c5 {[%clk 0:03:00.5]} 2. c3 {[%clk 0:03:00.8]}
2... d5 {[%clk 0:03:00.2]} 3. exd5 {[%clk 0:03:01.3]} 3... Qxd5 {[%clk
0:03:01.1]} 4. Nf3 {[%clk 0:02:59.4]} 4... g6 {[%clk 0:03:01.6]} 5. d4 {[%clk
0:02:57.1]} 5... Bg7 {[%clk 0:03:02]} 6. Nbd2 {[%clk 0:02:53.6]} 6... cxd4
{[%clk 0:03:02.3]} 7. Bc4 {[%clk 0:02:52.4]} 7... Qd8 {[%clk 0:02:51.2]} 8. Qb3
{[%clk 0:02:38.9]} 8... Nh6 {[%clk 0:02:41.3]} 9. Ne4 {[%clk 0:02:33.4]} 9...
O-O {[%clk 0:02:40.8]} 10. Bxh6 {[%clk 0:02:23]} 10... Bxh6 {[%clk 0:02:41.7]}
11. Rd1 {[%clk 0:02:12.1]} 11... Nc6 {[%clk 0:02:39.8]} 12. Nxd4 {[%clk
0:02:10.1]} 12... Nxd4 {[%clk 0:02:35.7]} 13. Rxd4 {[%clk 0:01:57.4]} 13... Qc7
{[%clk 0:02:36.3]} 14. O-O {[%clk 0:01:45]} 14... Bf5 {[%clk 0:02:25.5]} 15. Ng3
{[%clk 0:01:31.4]} 15... Bd7 {[%clk 0:02:21.5]} 16. Rfd1 {[%clk 0:01:26.9]}
16... Bc6 {[%clk 0:02:21.8]} 17. h4 {[%clk 0:01:07.9]} 17... Bg7 {[%clk
0:02:19.6]} 18. R4d3 {[%clk 0:01:01.1]} 18... e6 {[%clk 0:02:15.4]} 19. h5
{[%clk 0:00:56.4]} 19... a6 {[%clk 0:02:15.1]} 20. hxg6 {[%clk 0:00:46.9]} 20...
hxg6 {[%clk 0:02:16]} 21. R3d2 {[%clk 0:00:39]} 21... Rac8 {[%clk 0:02:13.3]}
22. Bf1 {[%clk 0:00:32.6]} 22... Be5 {[%clk 0:02:08.8]} 23. Rd3 {[%clk
0:00:28.3]} 23... Kg7 {[%clk 0:02:09.3]} 24. Qc4 {[%clk 0:00:14.9]} 24... Rh8
{[%clk 0:02:05.2]} 25. Qg4 {[%clk 0:00:14.4]} 25... Qe7 {[%clk 0:01:55.8]} 26.
Re3 {[%clk 0:00:10.2]} 26... Rh4 {[%clk 0:01:48.1]} 27. Qe2 {[%clk 0:00:07.3]}
27... Bf4 {[%clk 0:01:45.5]} 28. Red3 {[%clk 0:00:05.5]} 28... Rch8 {[%clk
0:01:44.7]} 29. f3 {[%clk 0:00:02.5]} 0-1

[Event "Late-Titled-Tuesday-Blitz-February-13-2024"]
[Site "Chess.com"]
[Date "2024.02.13"]
[Round "2"]
[White "Chessdude1987"]
[Black "TanitoluwaAps116"]
[Result "0-1"]
[WhiteElo "2380"]
[BlackElo "2779"]
[TimeControl "180+1"]
[EndTime "14:15:46 PST"]
[Termination "TanitoluwaAps116 won by resignation"]

1. e4 {[%clk 0:03:00.9]} 1... c5 {[%clk 0:03:00.1]} 2. Nf3 {[%clk 0:03:00.6]}
2... e6 {[%clk 0:02:57.7]} 3. d4 {[%clk 0:02:58.4]} 3... cxd4 {[%clk 0:02:58.6]}
4. Nxd4 {[%clk 0:02:58.6]} 4... Nf6 {[%clk 0:02:58.9]} 5. Nc3 {[%clk 0:02:58.7]}
5... Nc6 {[%clk 0:02:58.8]} 6. g3 {[%clk 0:02:58.9]} 6... d5 {[%clk 0:02:57.6]}
7. exd5 {[%clk 0:02:57]} 7... exd5 {[%clk 0:02:58.5]} 8. Bg2 {[%clk 0:02:56.8]}
8... Bg4 {[%clk 0:02:59]} 9. Nxc6 {[%clk 0:02:43.1]} 9... bxc6 {[%clk
0:02:57.8]} 10. Qd3 {[%clk 0:02:42.5]} 10... Bc5 {[%clk 0:02:54.4]} 11. O-O
{[%clk 0:02:41]} 11... O-O {[%clk 0:02:54.5]} 12. h3 {[%clk 0:02:37.6]} 12...
Be6 {[%clk 0:02:53.1]} 13. g4 {[%clk 0:02:28.8]} 13... Qd6 {[%clk 0:02:48.4]}
14. Bg5 {[%clk 0:02:23.3]} 14... Nd7 {[%clk 0:02:43.4]} 15. Kh1 {[%clk
0:02:19.3]} 15... Ne5 {[%clk 0:02:43.6]} 16. Qg3 {[%clk 0:02:19]} 16... f6
{[%clk 0:02:29.4]} 17. Bf4 {[%clk 0:02:13.1]} 17... g5 {[%clk 0:02:29.6]} 18.
Be3 {[%clk 0:02:07.4]} 18... Bxe3 {[%clk 0:02:24.8]} 19. fxe3 {[%clk 0:02:07.4]}
19... Rad8 {[%clk 0:02:20.9]} 20. Rad1 {[%clk 0:02:06.4]} 20... Nc4 {[%clk
0:02:14.3]} 21. Qxd6 {[%clk 0:01:51.9]} 21... Rxd6 {[%clk 0:02:15.2]} 22. Rfe1
{[%clk 0:01:38.1]} 22... Nxb2 {[%clk 0:02:03.7]} 23. Rb1 {[%clk 0:01:37.8]}
23... Nc4 {[%clk 0:02:04]} 24. Rb7 {[%clk 0:01:38.1]} 24... Rf7 {[%clk
0:02:00.9]} 25. Rb8+ {[%clk 0:01:37.1]} 25... Kg7 {[%clk 0:02:00.9]} 26. Na4
{[%clk 0:01:30.1]} 26... f5 {[%clk 0:01:54.8]} 27. gxf5 {[%clk 0:01:17.1]} 27...
Bxf5 {[%clk 0:01:55.7]} 28. c3 {[%clk 0:01:08.6]} 28... Re6 {[%clk 0:01:48.8]}
29. e4 {[%clk 0:00:46.9]} 29... dxe4 {[%clk 0:01:44.5]} 30. Nc5 {[%clk
0:00:46.4]} 30... Re5 {[%clk 0:01:42.8]} 31. Nxe4 {[%clk 0:00:32.2]} 31... Rfe7
{[%clk 0:01:31.1]} 32. Rb4 {[%clk 0:00:22.4]} 32... Bxe4 {[%clk 0:01:29.9]} 33.
Bxe4 {[%clk 0:00:20.1]} 33... Rxe4 {[%clk 0:01:30.1]} 34. Rxe4 {[%clk
0:00:19.4]} 34... Rxe4 {[%clk 0:01:31]} 35. Kg2 {[%clk 0:00:19.8]} 35... Ne3+
{[%clk 0:01:30.9]} 36. Kf3 {[%clk 0:00:19.8]} 36... Rxb4 {[%clk 0:01:31.8]} 37.
cxb4 {[%clk 0:00:19.7]} 37... Nc2 {[%clk 0:01:32.1]} 0-1

[Event "Late-Titled-Tuesday-Blitz-February-13-2024"]
[Site "Chess.com"]
[Date "2024.02.13"]
[Round "2"]
[White "aa175"]
[Black "FairChess_on_YouTube"]
[Result "0-1"]
[WhiteElo "2682"]
[BlackElo "3085"]
[TimeControl "180+1"]
[EndTime "14:15:50 PST"]
[Termination "FairChess_on_YouTube won by resignation"]

1. d4 {[%clk 0:03:00.7]} 1... Nf6 {[%clk 0:02:59.1]} 2. Nf3 {[%clk 0:03:01.3]}
2... e6 {[%clk 0:02:58.4]} 3. Bf4 {[%clk 0:03:01.9]} 3... b6 {[%clk 0:02:56.7]}
4. e3 {[%clk 0:03:02.4]} 4... Bb7 {[%clk 0:02:56.9]} 5. Nbd2 {[%clk 0:03:03]}
5... Nh5 {[%clk 0:02:56]} 6. Bg5 {[%clk 0:03:02.9]} 6... Be7 {[%clk 0:02:56.5]}
7. h4 {[%clk 0:03:02.5]} 7... h6 {[%clk 0:02:53.8]} 8. Bxe7 {[%clk 0:03:01.6]}
8... Qxe7 {[%clk 0:02:54.7]} 9. Bd3 {[%clk 0:03:01]} 9... d6 {[%clk 0:02:50]}
10. c3 {[%clk 0:02:59.6]} 10... Nd7 {[%clk 0:02:48.8]} 11. Qe2 {[%clk
0:02:59.6]} 11... a6 {[%clk 0:02:47.5]} 12. O-O-O {[%clk 0:02:59]} 12... Nhf6
{[%clk 0:02:35.4]} 13. Rhg1 {[%clk 0:02:52.1]} 13... c5 {[%clk 0:02:24.1]} 14.
g4 {[%clk 0:02:50.8]} 14... Nd5 {[%clk 0:02:16.1]} 15. g5 {[%clk 0:02:46]} 15...
hxg5 {[%clk 0:02:09]} 16. hxg5 {[%clk 0:02:39.3]} 16... cxd4 {[%clk 0:01:52.7]}
17. Nxd4 {[%clk 0:02:31.5]} 17... Nc5 {[%clk 0:01:48.6]} 18. Bc2 {[%clk
0:02:27.3]} 18... O-O-O {[%clk 0:01:41.5]} 19. f4 {[%clk 0:02:19]} 19... Kb8
{[%clk 0:01:38]} 20. Qf2 {[%clk 0:02:03]} 20... Rh3 {[%clk 0:01:18.5]} 21. e4
{[%clk 0:02:00.3]} 21... Ne3 {[%clk 0:01:17.7]} 22. Rde1 {[%clk 0:01:37]} 22...
Nxc2 {[%clk 0:01:16.4]} 23. Kxc2 {[%clk 0:01:37.9]} 23... Nd3 {[%clk 0:01:15.5]}
24. Qg2 {[%clk 0:01:32.7]} 24... Nxe1+ {[%clk 0:01:14.4]} 25. Rxe1 {[%clk
0:01:33.6]} 25... Rdh8 {[%clk 0:01:13.8]} 26. g6 {[%clk 0:01:29.5]} 26... Rh2
{[%clk 0:00:57.5]} 27. Qf1 {[%clk 0:01:30.1]} 27... fxg6 {[%clk 0:00:54.5]} 28.
Qxa6 {[%clk 0:01:26.7]} 28... e5 {[%clk 0:00:40.3]} 29. fxe5 {[%clk 0:01:19]}
29... dxe5 {[%clk 0:00:39.6]} 30. Qxb6 {[%clk 0:00:59.5]} 30... exd4 {[%clk
0:00:39.3]} 31. cxd4 {[%clk 0:00:59.7]} 31... Rc8+ {[%clk 0:00:34.3]} 0-1

[Event "Late-Titled-Tuesday-Blitz-February-13-2024"]
[Site "Chess.com"]
[Date "2024.02.13"]
[Round "2"]
[White "fmcabralis"]
[Black "RantomOpening"]
[Result "0-1"]
[WhiteElo "2256"]
[BlackElo "2508"]
[TimeControl "180+1"]
[EndTime "14:15:55 PST"]
[Termination "RantomOpening won on time"]

1. e4 {[%clk 0:03:00.9]} 1... c5 {[%clk 0:02:57.6]} 2. Nf3 {[%clk 0:03:00.9]}
2... e6 {[%clk 0:02:53.7]} 3. d4 {[%clk 0:03:01]} 3... cxd4 {[%clk 0:02:52]} 4.
Nxd4 {[%clk 0:03:01.9]} 4... Nf6 {[%clk 0:02:52.6]} 5. Nc3 {[%clk 0:02:55.4]}
5... Nc6 {[%clk 0:02:47.9]} 6. a3 {[%clk 0:02:54.6]} 6... d6 {[%clk 0:02:47.1]}
7. Be3 {[%clk 0:02:48.2]} 7... Be7 {[%clk 0:02:46.6]} 8. g3 {[%clk 0:02:42.5]}
8... Nxd4 {[%clk 0:02:43.3]} 9. Qxd4 {[%clk 0:02:30]} 9... e5 {[%clk 0:02:43.3]}
10. Qa4+ {[%clk 0:02:05.6]} 10... Bd7 {[%clk 0:02:42.3]} 11. Qb3 {[%clk
0:02:05.9]} 11... Bc6 {[%clk 0:02:40.3]} 12. Bg2 {[%clk 0:01:55.6]} 12... O-O
{[%clk 0:02:38.2]} 13. O-O {[%clk 0:01:55.5]} 13... Qa5 {[%clk 0:02:37.4]} 14.
Rad1 {[%clk 0:01:41.6]} 14... Rfd8 {[%clk 0:02:32.1]} 15. h3 {[%clk 0:01:30.2]}
15... h6 {[%clk 0:02:31.1]} 16. f4 {[%clk 0:01:26.8]} 16... Rac8 {[%clk
0:02:30.1]} 17. Nd5 {[%clk 0:01:22.3]} 17... Nxd5 {[%clk 0:02:12.1]} 18. exd5
{[%clk 0:01:23.2]} 18... Bb5 {[%clk 0:02:12.3]} 19. Rf2 {[%clk 0:01:01.3]} 19...
Bf6 {[%clk 0:02:09.8]} 20. Re1 {[%clk 0:00:40.2]} 20... Re8 {[%clk 0:02:07.5]}
21. c3 {[%clk 0:00:28.2]} 21... exf4 {[%clk 0:02:02.9]} 22. gxf4 {[%clk
0:00:15.5]} 22... Bh4 {[%clk 0:02:02.7]} 23. Qc2 {[%clk 0:00:15]} 23... Bxf2+
{[%clk 0:02:01.7]} 24. Qxf2 {[%clk 0:00:15.9]} 24... Bc4 {[%clk 0:02:00.1]} 25.
b4 {[%clk 0:00:12.9]} 25... Qb5 {[%clk 0:01:59.9]} 26. Qg3 {[%clk 0:00:10.2]}
26... Bxd5 {[%clk 0:01:54.2]} 27. Rd1 {[%clk 0:00:06.9]} 27... Bxg2 {[%clk
0:01:52.8]} 28. Bd4 {[%clk 0:00:05.8]} 28... g6 {[%clk 0:01:44.6]} 29. Qxg2
{[%clk 0:00:05.7]} 29... Qc6 {[%clk 0:01:41.6]} 30. Qg3 {[%clk 0:00:02.9]} 30...
Qe4 {[%clk 0:01:41.4]} 31. Qh4 {[%clk 0:00:02.1]} 31... Re5 {[%clk 0:01:30.4]}
0-1